Cogmind - Beta 14 *** ADVENTURER MODE // 2024.10.19 @ 02:02:26 Player: Alzonario Result: Destroyed by as-05440 with Assembled Rifle Performance ------------- Evolutions (0) 0 Regions Visited (0) 0 Robots Destroyed (0) 0 Value Destroyed (0) 0 Prototype IDs (0) 0 Alien Tech Used (0) 0 Bonus (0) 0 TOTAL SCORE: 0 Bonus ------- None Cogmind --------- Core Integrity 0/250 Matter 300/300 Energy 56/100 System Corruption 0% Temperature Cool (0) Movement Rolling (80) Location -11/Scrapyard Parts ------- > --- POWER (1) -------- (None) > --- PROPULSION (2) --- Wheel > --- UTILITY (2) ------ Small Storage Unit Improved Terrain Scanner > --- WEAPON (2) ------- (None) > --- INVENTORY (8) ---- (None) Peak State ------------ > --- POWER ------------ Ion Engine > --- PROPULSION ------- Light Treads Light Treads > --- UTILITY ---------- Small Storage Unit > --- WEAPON ----------- Light Assault Rifle Light Assault Rifle > --- INVENTORY -------- Medium Laser [Rating: 6] Favorites ----------- Power Ion Engine Engine Ion Engine Propulsion Light Treads Treads Light Treads Wheel Wheel Utility Small Storage Unit Device Improved Terrain Scanner Storage Small Storage Unit Weapon Light Assault Rifle Energy Gun Medium Laser Ballistic Gun Light Assault Rifle Build | -11 ------- Run | Yrd Slots Evolved . | . Power . | . Propulsion . | . Utility . | . Weapon . | . Parts Attached 10 | 10 Power 1 | 1 Engine 1 | 1 Core . | . Reactor . | . Propulsion 3 | 3 Treads 2 | 2 Leg . | . Wheel 1 | 1 Hover . | . Flight . | . Utility 3 | 3 Device 1 | 1 Storage 2 | 2 Processor . | . Hackware . | . Protection . | . Artifact . | . Weapon 3 | 3 Energy Gun 1 | 1 Energy Cannon . | . Ballistic Gun 2 | 2 Ballistic Cannon . | . Launcher . | . Special Weapon . | . Impact Weapon . | . Slashing Weapon . | . Piercing Weapon . | . Special Melee Weapon . | . Unidentified Prototypes . | . Parts Lost 6 | 6 Power 1 | 1 Propulsion 2 | 2 Utility . | . Weapon 3 | 3 Highest Loss Streak 5 | 5 To Critical Strikes . | . Average Slot Usage (%) . | . Peak Build Rating 6 | 6 Average Rating 3 | 3 On Entrance . | . Naked Turns . | . Heaviest Build 12 | 12 Greatest Support 40 | 40 Greatest Overweight (x) . | . Average Overweight (x) . | . Largest Inventory Capacity 8 | 8 Average Capacity 6 | 6 Most Carried 5 | 5 Average Carried 3 | 3 Final Capacity 8 | 8 Final Carried . | . Class Distribution -------------------- None Dominant Class ---------------- None Resources | -11 ----------- Run | Yrd Matter Collected 293 | 293 Remotely . | . Salvage Created 57 | 57 Parts . | . Haulers Intercepted . | . Recyclers Shooed . | . Parts Field Recycled . | . Retrieved Matter . | . Parts Self-Destructed . | . Prevented . | . Kills | -11 ------- Run | Yrd Combat Hostiles Destroyed 5 | 5 Guns 5 | 5 Classes Destroyed 1 | 1 Assembled 5 | 5 Best Kill Streak 5 | 5 Combat Bots Only 5 | 5 Max Kills in Single Turn 1 | 1 Gunslinging . | . Exploded . | . Melee . | . Uniques/NPCs Destroyed . | . Combat | -11 -------- Run | Yrd Hostile Shots Fired 108 | 108 Missed 38 | 38 Damage Taken 912 | 912 Core 253 | 253 Absorbed by Shields . | . Ignored by Resistances 259 | 259 Core Remaining (%) . | . Volleys Fired 32 | 32 Largest 2 | 2 Hottest 70 | 70 Shots Fired 44 | 44 Gun 44 | 44 Cannon . | . Launcher . | . Special . | . Kinetic 23 | 23 Thermal 21 | 21 Explosive . | . Electromagnetic . | . Robot Hit Streak 7 | 7 Robot Miss Streak 3 | 3 Penetration Max . | . Secondary Targets 1 | 1 Max Gunslinging Chain 1 | 1 Shots Hit Robots 32 | 32 Core Hits 12 | 12 Critical Kills . | . Critical Parts Destroyed . | . Critical Strikes 4 | 4 Burn 4 | 4 Melee Attacks . | . Impact . | . Slashing . | . Piercing . | . Sneak Attacks . | . Combat Hostiles . | . Follow-up Attacks . | . Damage Inflicted 324 | 324 Guns 324 | 324 Cannons . | . Explosions . | . Melee . | . Ramming . | . Kinetic 125 | 125 Thermal 199 | 199 Explosive . | . Electromagnetic . | . Impact . | . Slashing . | . Piercing . | . Highest Corruption . | . Average Corruption . | . Corruption Purged . | . Corruption Blocked . | . Overload Shots . | . Overflow Damage . | . Projectiles . | . Explosions . | . Melee . | . Knockbacks . | . Impact . | . Kinetic . | . Secondary . | . Self-Inflicted Damage . | . Shots . | . Rammed . | . Targets Rammed . | . Kicked . | . Crushed . | . Highest Temperature 25 | 25 Average Temperature 20 | 20 Received Heat Transfer . | . Siege Activations . | . Robots Corrupted . | . Combat Hostiles . | . Parts Fried . | . Impact Corruptions . | . Robots Melted . | . Combat Hostiles . | . Parts Melted . | . Heat Transferred 888 | 888 Parts Sabotaged . | . Parts Stolen . | . Parts Stripped . | . Power Chain Reactions . | . Alert | -11 ------- Run | Yrd Peak Influence 35 | 35 Initial . | . Average 1 | 1 Maximum Alert Level . | . Low Security (%) 100 | 100 Level 1 . | . Level 2 . | . Level 3 . | . Level 4 . | . Level 5 . | . High Security . | . Max Security . | . Squads Dispatched . | . Investigation . | . Extermination . | . Reinforcement . | . Assault . | . Garrison . | . Intercept . | . Searches Triggered . | . Construction Impeded . | . Haulers Reinforced . | . Active Scanning Responses . | . Cargo Convoy Interrupts . | . Stealth | -11 --------- Run | Yrd Distress Signals . | . Communications Jammed . | . Distress Signals . | . Times Spotted 23 | 23 Peak Tracking Total 18 | 18 Tactical Retreats 1 | 1 Traps | -11 ------- Run | Yrd Traps Triggered . | . Indirectly . | . Trap Hack Attempts . | . Triggered . | . Disarmed . | . Reprogrammed . | . Reused . | . Traps Extracted . | . Installed . | . Triggered . | . Machines | -11 ---------- Run | Yrd Machines Disabled . | . Max in Single Turn . | . Machines Repaired . | . Machines Dismantled . | . Machines Sabotaged . | . Overloaded Fab Kills . | . Hacking | -11 --------- Run | Yrd Machines Accessed . | . Terminals . | . Fabricators . | . Repair Stations . | . Recycling Units . | . Scanalyzers . | . Garrison Access . | . Total Hacks . | . Successful . | . Failed . | . Catastrophic . | . Database Lockouts . | . Manual . | . Terminals . | . Fabricators . | . Repair Stations . | . Recycling Units . | . Scanalyzers . | . Garrison Access . | . Terminal Hacks . | . Fabricator Hacks . | . Repair Station Hacks . | . Recycling Unit Hacks . | . Scanalyzer . | . Garrison Access Hacks . | . Unauthorized Hacks . | . Terminals . | . Fabricators . | . Repair Stations . | . Recycling Units . | . Scanalyzers . | . Garrison Access . | . Data Cores Recovered . | . Used . | . Hacking Detections . | . Full Trace Events . | . Feedback Events . | . Feedback Blocked . | . Robot Schematics Acquired . | . Robots Built . | . Authchips . | . Time . | . Total Robot Build Rating . | . Part Schematics Acquired . | . Parts Built . | . Authchips . | . Time . | . Total Part Build Rating . | . Parts Repaired . | . Time . | . Parts Recycled . | . Recycled Matter . | . Retrieved Matter . | . Retrieved Components . | . Parts Scanalyzed . | . Part Schematics Acquired . | . Parts Damaged . | . Bothacking | -11 ------------ Run | Yrd Used RIF Installer . | . Robots Hacked . | . Non-combat . | . Combat . | . Robot Hacks Applied . | . Relay Couplers Released . | . Fabnet Peak Effective % . | . Robots Rewired . | . Allies Hacked . | . Hacks Repelled . | . Allies | -11 -------- Run | Yrd Total Allies . | . Largest Group . | . Highest-Rated Group . | . Highest-Rated Ally . | . Total Orders . | . Ally Attacks . | . Total Damage . | . Kills . | . Allies Corrupted . | . Allies Melted . | . Intel | -11 ------- Run | Yrd Robot Analysis Total . | . Derelict Logs Recovered . | . Drone Launches . | . Drone Recoveries . | . Exploration | -11 ------------- Run | Yrd Turns Passed 1288 | 1288 Spaces Moved 325 | 325 Core 119 | 119 Treads 186 | 186 Legs . | . Wheels 20 | 20 Hover . | . Flight . | . Fastest Speed 50 | 50 Average Speed 114 | 114 Slowest Speed 160 | 160 Overloaded Moves . | . Propulsion Burnouts . | . Robots Hopped . | . Cave-ins Triggered . | . Exploration Rate (%) 26 | 26 Regions Visited . Branch Regions . Pre-discovered Areas . | . Known Exits Taken . | . Unknown Exits Taken . | . Scrap Searched . | . Spaces Dug . | . Terrain Destroyed . | . Melee . | . Projectile . | . AOE . | . Terrain Rammed . | . Walls Destroyed . | . Machines Disabled . | . Actions | -11 --------- Run | Yrd Total 1201 | 1201 Wait 823 | 823 Move 325 | 325 Hop . | . Pick Up 10 | 10 Fast Attach . | . Attach 10 | 10 Detach . | . Swap . | . Drop 1 | 1 Fire 32 | 32 Melee . | . Ram . | . Kick . | . Crush . | . Escape Stasis . | . Rewire . | . Trap . | . Miscellaneous . | . Route ------- -11/Scrapyard (discovered 1 exit: [*Mat]) History --------- Turn | Location | Event 5 | -11/Scrapyard | Discovered new exit (range 13) 1133 | -11/Scrapyard | Assembled infested the area 1223 | -11/Scrapyard | Core integrity fell below 50% 1251 | -11/Scrapyard | Lost 5 parts (1p2n2w) 1252 | -11/Scrapyard | Core integrity fell below 20% 1289 | -11/Scrapyard | Destroyed by as-05440 with Assembled Rifle Last Messages --------------- 01213_ Lgt. Treads destroyed. 01216_ as-19659 destroyed. 01218_ Lgt. Assault Rifle destroyed. 01224_ as-52868 suffers critical hit (Burn). 01224_ as-52868 destroyed. 01228_ as-38318 suffers critical hit (Burn). 01234_ as-38318 destroyed. 01238_ as-52031 suffers critical hit (Burn). 01254_ as-52031 destroyed. 01256_ Dropped Sml. Storage Unit. 01258_ Acquired 3 matter. 01259_ Acquired 16 matter. 01259_ Acquired 21 matter. 01260_ Acquired 15 matter. 01261_ Acquired 4 matter. 01262_ Acquired Wheel. 01265_ Acquired Sml. Storage Unit. 01272_ Med. Laser destroyed. 01276_ Acquired 14 matter. 01277_ Acquired 1 matter. Map ----- +----------------------------------------------------+ | ?????????????????????????????????????????????????? | | ?????????????????????????????????????????????????? | | ?????????????????????????????????????????????????? | | ?????????????????????????????????????????????????? | | ?????????????????????????????????????????????????? | | ?????????????????????????????????????????????????? | | ?????????????????????????????????????????????????? | | ?????????????????????????????????????????????????? | | ?????????????????????????????????????????????????? | | ??????????????????????#####??????????????????????? | | ?????????????????????# #??????????????????????? | | ??????????????????? ?# #?????????????????????? | | ??????????????????# # ##????????????????????? | | ??????????????????# ##???????????????????? | | ??????????????????# # #???????????????????? | | ????????########### # #???????????????????? | | ????????# # # # #???????????????????? | | ????????# ###???????????????????? | | ????????# # # # ###???????????????????? | | ????????#### % ###?????????????????? | | ???????????## # % % #?#???????????????? | | ???????#????######## # ##????????????????? | | ???????????#????????# %% #????????????????? | | ??######???????????## ### %# ##????????????????? | | ??# #????######## ##%= ##????????????????? | | ??# #????# @=%= #????????????????? | | ??# #????# != ##????????????????? | | ??# #????# ##?????????????????? | | ??# #??#?# ##??????????????????? | | ??# #???## # ##???????????????????? | | ??# ###### a # #????????????????????? | | ##### ### ########a###### ########## ##????????? | | !%* *%| ?????? | | = %| =! % ?????? | | ############ ######################## #?????????? | | #????????# #????????#?#????????# #?????????? | | #????????# % #???????????????????# #?????????? | | ?????????# #???????????????????# #?????????? | | #???#????# #????????????????#### ####??????? | | ?????????# #???##########???# #??????? | | ???#?????# #???# = #???# #??????? | | ?????????########???# #???# #####??? | | ????????????????????# ##### #? | | ????????????????????# #? | | ????????????????????# *= ### ###? | | ????????#???????????# = ##### < #??? #?? | | ????????????????????# #???# #????#?? | | ????????? ??????????# = #???##########??????? | | ????????????????????##########???????????????????? | | ?????????? ??????????????????????????????????????? | +----------------------------------------------------+ Best States ------------- Heat Dissipation 25 Energy Generation 10 Energy Capacity 250 Matter Stores 300 Matter Capacity 300 Sight Range 16 Terrain Scan Range 16 Terrain Scan Density 10 Resistance: KI 20 Resistance: TH 20 Resistance: EX 20 Resistance: EM 20 Resistance: I 20 Resistance: S 20 Resistance: P 20 Evasion (%) 50 Recoil Reduction 2 Offensive Hacking 10 Item Schematics ----------------- None Robot Schematics ------------------ None Fabricated ------------ Nothing Alien Tech Used ----------------- None Achievements -------------- Curiosity Killed The Cat Challenges ------------ None Game ------ Seed BarrageMultitargetingFilter Manual? 0 Play Time 00:13:42 Cumulative 7.7 hours Start 2024.10.19 @ 01:55:22 End 2024.10.19 @ 02:02:26 Sessions 0 Manual Loads 0 Difficulty Adventurer Special Mode None Game No. 7 Rogue 6 Adventurer 1 Explorer 0 Win Type - Total 0 Types 0/0/0/0/0/0/0/0/0 Lore% 12 Gallery% 11 Achievement% 24 Wizard Run 0 Options --------- Layout 0 ASCII 0 Keyboard 0 Movement Mouse Keybinds 0 Fullscreen 2 Font 18/SmallcapsGlow Map View 76x50 Zoom Use 0% Tactical HUD 1 Map Filters NONE Filters NONE Steam 1 RUN: c2623502-57b3-42e7-b76c-6d6f9c1ed338